Body Name,Body,Service division categorisation,Expense Type,Date paid,Transaction Reference,Net,Supplier Name,Redacted/Excluded
South Holland District Council,http://statistics.data.gov.uk/id/local-authority/32UF,Community Development,Premises and Room Hire,02/10/2014,IJ00033116,-1165.00,Act II,
South Holland District Council,http://statistics.data.gov.uk/id/local-authority/32UF,Community Development,Other Hire Fees,02/10/2014,IJ00033116,-1530.83,Act II,
South Holland District Council,http://statistics.data.gov.uk/id/local-authority/32UF,Community Development,Payments to Bodies in Respect of Income Collected,02/10/2014,IJ00033116,4224.00,Act II,
South Holland District Council,http://statistics.data.gov.uk/id/local-authority/32UF,Community Development,Commission,02/10/2014,IJ00033116,-352.00,Act II,
South Holland District Council,http://statistics.data.gov.uk/id/local-authority/32UF,Housing Landlord Manager,Void Repairs,02/10/2014,IJ00033137,500.00,Ashford Commercial Ltd,
South Holland District Council,http://statistics.data.gov.uk/id/local-authority/32UF,Housing Landlord Manager,Void Repairs,02/10/2014,IJ00033141,500.00,Ashford Commercial Ltd,
South Holland District Council,http://statistics.data.gov.uk/id/local-authority/32UF,Revs and Bens,Subscriptions to Organisations and Other Bodies,02/10/2014,IJ00033209,2200.00,Audit Commission,
South Holland District Council,http://statistics.data.gov.uk/id/local-authority/32UF,Housing Landlord Manager,Computer Software Licence Costs,02/10/2014,IJ00033138,1821.00,Automico Limited,
South Holland District Council,http://statistics.data.gov.uk/id/local-authority/32UF,Community Development,Performers and Entertainers Fees,02/10/2014,IJ00033084,1394.45,Brookfield Knights,
South Holland District Council,http://statistics.data.gov.uk/id/local-authority/32UF,Environmental Services,Agency Staff,02/10/2014,IJ00033072,162.40,Blue Arrow Ltd,
South Holland District Council,http://statistics.data.gov.uk/id/local-authority/32UF,Environmental Services,Agency Staff,02/10/2014,IJ00033072,1635.36,Blue Arrow Ltd,
South Holland District Council,http://statistics.data.gov.uk/id/local-authority/32UF,Environmental Services,Agency Staff,02/10/2014,IJ00033072,1656.83,Blue Arrow Ltd,
South Holland District Council,http://statistics.data.gov.uk/id/local-authority/32UF,Environmental Services,Agency Staff,02/10/2014,IJ00033072,527.12,Blue Arrow Ltd,
South Holland District Council,http://statistics.data.gov.uk/id/local-authority/32UF,Environmental Services,Agency Staff,02/10/2014,IJ00033072,96.74,Blue Arrow Ltd,
South Holland District Council,http://statistics.data.gov.uk/id/local-authority/32UF,Environmental Services,Materials and Consumables,02/10/2014,IJ00033232,11585.58,Bpi Recycled Products,
South Holland District Council,http://statistics.data.gov.uk/id/local-authority/32UF,Environmental Services,Materials and Consumables,02/10/2014,IJ00033232,10108.10,Bpi Recycled Products,
South Holland District Council,http://statistics.data.gov.uk/id/local-authority/32UF,Finance,Professional & Contractors Fees,02/10/2014,IJ00033216,933.25,Capita Business Services Ltd,
South Holland District Council,http://statistics.data.gov.uk/id/local-authority/32UF,Housing Landlord Manager,Fuel & Oil,02/10/2014,IJ00033033,587.20,C H Jones Ltd,
South Holland District Council,http://statistics.data.gov.uk/id/local-authority/32UF,Environmental Services,Fuel & Oil,02/10/2014,IJ00033033,442.44,C H Jones Ltd,
South Holland District Council,http://statistics.data.gov.uk/id/local-authority/32UF,Environmental Services,Fuel & Oil,02/10/2014,IJ00033033,2092.77,C H Jones Ltd,
South Holland District Council,http://statistics.data.gov.uk/id/local-authority/32UF,Environmental Services,Fuel & Oil,02/10/2014,IJ00033033,584.28,C H Jones Ltd,
South Holland District Council,http://statistics.data.gov.uk/id/local-authority/32UF,Environmental Services,Fuel & Oil,02/10/2014,IJ00033033,2846.28,C H Jones Ltd,
South Holland District Council,http://statistics.data.gov.uk/id/local-authority/32UF,Housing Landlord Manager,Fuel & Oil,02/10/2014,IJ00033033,173.16,C H Jones Ltd,
South Holland District Council,http://statistics.data.gov.uk/id/local-authority/32UF,Housing Landlord Manager,Fuel & Oil,02/10/2014,IJ00033033,163.93,C H Jones Ltd,
South Holland District Council,http://statistics.data.gov.uk/id/local-authority/32UF,Environmental Services,Fuel & Oil,02/10/2014,IJ00033033,23.57,C H Jones Ltd,
South Holland District Council,http://statistics.data.gov.uk/id/local-authority/32UF,Environmental Services,Fuel & Oil,02/10/2014,IJ00033033,5.59,C H Jones Ltd,
South Holland District Council,http://statistics.data.gov.uk/id/local-authority/32UF,Community Development,External Printing and Design Costs,02/10/2014,IJ00033106,241.00,Classic Printers,
South Holland District Council,http://statistics.data.gov.uk/id/local-authority/32UF,Community Development,Postages,02/10/2014,IJ00033106,956.51,Classic Printers,
South Holland District Council,http://statistics.data.gov.uk/id/local-authority/32UF,Revs and Bens,Compass Point Business Services,02/10/2014,IJ00033241,17143.00,Compass Point Business Srvcs (East Coast) Ltd,
South Holland District Council,http://statistics.data.gov.uk/id/local-authority/32UF,Finance,Compass Point Business Services,02/10/2014,IJ00033242,248630.66,Compass Point Business Srvcs (East Coast) Ltd,
South Holland District Council,http://statistics.data.gov.uk/id/local-authority/32UF,Environmental Services,Road Tax,02/10/2014,IJ00033075,123.75,C P Davidson & Sons Ltd,
South Holland District Council,http://statistics.data.gov.uk/id/local-authority/32UF,Environmental Services,Road Tax,02/10/2014,IJ00033075,495.00,C P Davidson & Sons Ltd,
South Holland District Council,http://statistics.data.gov.uk/id/local-authority/32UF,Environmental Services,Road Tax,02/10/2014,IJ00033075,495.00,C P Davidson & Sons Ltd,
South Holland District Council,http://statistics.data.gov.uk/id/local-authority/32UF,Environmental Services,Road Tax,02/10/2014,IJ00033075,123.75,C P Davidson & Sons Ltd,
South Holland District Council,http://statistics.data.gov.uk/id/local-authority/32UF,Capital,Purchase of Hardware,02/10/2014,IJ00033125,17907.71,Dell Computer Corporation Ltd,
South Holland District Council,http://statistics.data.gov.uk/id/local-authority/32UF,Community Development,Film and Entertainment Costs,02/10/2014,IJ00033085,731.46,Entertainment Film Distribution Ltd,
South Holland District Council,http://statistics.data.gov.uk/id/local-authority/32UF,Community Development,Gas,02/10/2014,IJ00033081,552.41,Espo Gas And Electricity,
South Holland District Council,http://statistics.data.gov.uk/id/local-authority/32UF,Asset and Property,Buildings Maintenance - Programmed,02/10/2014,IJ00033214,3699.74,Glen Farrow UK Ltd,
South Holland District Council,http://statistics.data.gov.uk/id/local-authority/32UF,Democratic Services,Other Miscellaneous Expenses,02/10/2014,IJ00033122,633.20,Hills Furnishings Ltd,
South Holland District Council,http://statistics.data.gov.uk/id/local-authority/32UF,Environmental Services,Agency Staff,02/10/2014,IJ00033034,284.80,Integrity Plus Ltd,
South Holland District Council,http://statistics.data.gov.uk/id/local-authority/32UF,Environmental Services,Agency Staff,02/10/2014,IJ00033034,289.69,Integrity Plus Ltd,
South Holland District Council,http://statistics.data.gov.uk/id/local-authority/32UF,Environmental Services,Agency Staff,02/10/2014,IJ00033034,73.63,Integrity Plus Ltd,
South Holland District Council,http://statistics.data.gov.uk/id/local-authority/32UF,Housing Landlord Manager,Materials and Consumables,02/10/2014,IJ00033208,4288.62,Jackson Buildbase,
South Holland District Council,http://statistics.data.gov.uk/id/local-authority/32UF,Housing Landlord Manager,Materials and Consumables,02/10/2014,IJ00033208,7030.09,Jackson Buildbase,
South Holland District Council,http://statistics.data.gov.uk/id/local-authority/32UF,Housing Landlord Manager,Materials and Consumables,02/10/2014,IJ00033208,643.60,Jackson Buildbase,
South Holland District Council,http://statistics.data.gov.uk/id/local-authority/32UF,Housing Landlord Manager,Materials and Consumables,02/10/2014,IJ00033226,520.41,Jackson Buildbase,
South Holland District Council,http://statistics.data.gov.uk/id/local-authority/32UF,Housing Landlord Manager,Materials and Consumables,02/10/2014,IJ00033226,3013.30,Jackson Buildbase,
South Holland District Council,http://statistics.data.gov.uk/id/local-authority/32UF,Housing Landlord Manager,Materials and Consumables,02/10/2014,IJ00033226,499.90,Jackson Buildbase,
South Holland District Council,http://statistics.data.gov.uk/id/local-authority/32UF,Housing Landlord Manager,Materials and Consumables,02/10/2014,IJ00033225,885.76,Jackson Buildbase,
South Holland District Council,http://statistics.data.gov.uk/id/local-authority/32UF,Housing Landlord Manager,Materials and Consumables,02/10/2014,IJ00033225,3388.22,Jackson Buildbase,
South Holland District Council,http://statistics.data.gov.uk/id/local-authority/32UF,Housing Landlord Manager,Materials and Consumables,02/10/2014,IJ00033225,538.76,Jackson Buildbase,
South Holland District Council,http://statistics.data.gov.uk/id/local-authority/32UF,Housing Landlord Manager,Materials and Consumables,02/10/2014,IJ00033224,2650.19,Jackson Buildbase,
South Holland District Council,http://statistics.data.gov.uk/id/local-authority/32UF,Housing Landlord Manager,Materials and Consumables,02/10/2014,IJ00033224,3049.36,Jackson Buildbase,
South Holland District Council,http://statistics.data.gov.uk/id/local-authority/32UF,Housing Landlord Manager,Materials and Consumables,02/10/2014,IJ00033224,268.55,Jackson Buildbase,
South Holland District Council,http://statistics.data.gov.uk/id/local-authority/32UF,Democratic Services,Other Miscellaneous Expenses,02/10/2014,IJ00033121,909.40,J T Ward Joinery Limited,
South Holland District Council,http://statistics.data.gov.uk/id/local-authority/32UF,Housing Landlord Manager,Buildings Maintenance - Responsive,02/10/2014,IJ00033032,133.50,Kls Care,
South Holland District Council,http://statistics.data.gov.uk/id/local-authority/32UF,Housing Landlord Manager,Buildings Maintenance - Responsive,02/10/2014,IJ00033032,133.50,Kls Care,
South Holland District Council,http://statistics.data.gov.uk/id/local-authority/32UF,Housing Landlord Manager,Buildings Maintenance - Responsive,02/10/2014,IJ00033032,133.50,Kls Care,
South Holland District Council,http://statistics.data.gov.uk/id/local-authority/32UF,Housing Landlord Manager,Buildings Maintenance - Responsive,02/10/2014,IJ00033032,141.47,Kls Care,
South Holland District Council,http://statistics.data.gov.uk/id/local-authority/32UF,Housing Landlord Manager,Buildings Maintenance - Responsive,02/10/2014,IJ00033032,133.50,Kls Care,
South Holland District Council,http://statistics.data.gov.uk/id/local-authority/32UF,Housing Landlord Manager,Buildings Maintenance - Responsive,02/10/2014,IJ00033032,160.20,Kls Care,
South Holland District Council,http://statistics.data.gov.uk/id/local-authority/32UF,Housing Landlord Manager,Buildings Maintenance - Responsive,02/10/2014,IJ00033032,133.50,Kls Care,
South Holland District Council,http://statistics.data.gov.uk/id/local-authority/32UF,Housing Landlord Manager,Buildings Maintenance - Responsive,02/10/2014,IJ00033032,133.50,Kls Care,
South Holland District Council,http://statistics.data.gov.uk/id/local-authority/32UF,Housing Landlord Manager,Buildings Maintenance - Responsive,02/10/2014,IJ00033032,133.50,Kls Care,
South Holland District Council,http://statistics.data.gov.uk/id/local-authority/32UF,Housing Landlord Manager,Buildings Maintenance - Responsive,02/10/2014,IJ00033032,133.51,Kls Care,
South Holland District Council,http://statistics.data.gov.uk/id/local-authority/32UF,Housing Landlord Manager,Buildings Maintenance - Responsive,02/10/2014,IJ00033032,133.50,Kls Care,
South Holland District Council,http://statistics.data.gov.uk/id/local-authority/32UF,Housing Landlord Manager,Buildings Maintenance - Responsive,02/10/2014,IJ00033032,133.50,Kls Care,
South Holland District Council,http://statistics.data.gov.uk/id/local-authority/32UF,Housing Landlord Manager,Buildings Maintenance - Responsive,02/10/2014,IJ00033032,133.50,Kls Care,
South Holland District Council,http://statistics.data.gov.uk/id/local-authority/32UF,Housing Landlord Manager,Buildings Maintenance - Responsive,02/10/2014,IJ00033032,133.50,Kls Care,
South Holland District Council,http://statistics.data.gov.uk/id/local-authority/32UF,Capital,Works to Buildings (main Contractor),02/10/2014,IJ00033036,806.40,Leisure Connection Ltd,
South Holland District Council,http://statistics.data.gov.uk/id/local-authority/32UF,Community Development,Leisure Management,02/10/2014,IJ00033037,1552.41,Leisure Connection Ltd,
South Holland District Council,http://statistics.data.gov.uk/id/local-authority/32UF,Community Development,Leisure Management,02/10/2014,IJ00033037,1552.41,Leisure Connection Ltd,
South Holland District Council,http://statistics.data.gov.uk/id/local-authority/32UF,Democratic Services,Lincolnshire Legal Services,02/10/2014,IJ00033227,6396.48,Lincolnshire County Council,
South Holland District Council,http://statistics.data.gov.uk/id/local-authority/32UF,Democratic Services,Lincolnshire Legal Services,02/10/2014,IJ00033227,965.00,Lincolnshire County Council,
South Holland District Council,http://statistics.data.gov.uk/id/local-authority/32UF,Capital,Loans,02/10/2014,IJ00033221,10000.00,Local Government Association,
South Holland District Council,http://statistics.data.gov.uk/id/local-authority/32UF,Building Control,Buildings Maintenance - Programmed,02/10/2014,IJ00033160,884.10,Main Street Signs Ltd,
South Holland District Council,http://statistics.data.gov.uk/id/local-authority/32UF,Environmental Health,Legal Fees,02/10/2014,IJ00033182,1895.82,Maples Solicitors,
South Holland District Council,http://statistics.data.gov.uk/id/local-authority/32UF,ICT and Customer Services,Computer Software Licence Costs,02/10/2014,IJ00033129,2801.40,Northgate Information Solutions Uk Ltd,
South Holland District Council,http://statistics.data.gov.uk/id/local-authority/32UF,Community Development,Performers and Entertainers Fees,02/10/2014,IJ00033089,679.50,Picturehouse Entertainment Limited,
South Holland District Council,http://statistics.data.gov.uk/id/local-authority/32UF,Community Development,Performers and Entertainers Fees,02/10/2014,IJ00033092,965.73,Picturehouse Entertainment Limited,
South Holland District Council,http://statistics.data.gov.uk/id/local-authority/32UF,Planning,Grants and Contributions to Outside Bodies- No Service Recei,02/10/2014,IJ00033145,594.00,Plann.It Limited,
South Holland District Council,http://statistics.data.gov.uk/id/local-authority/32UF,Housing Landlord Manager,Materials and Consumables,02/10/2014,IJ00033204,886.69,Rexel Uk Ltd,
South Holland District Council,http://statistics.data.gov.uk/id/local-authority/32UF,Community Development,Electricity,02/10/2014,IJ00033093,2140.64,Southern Electric,
South Holland District Council,http://statistics.data.gov.uk/id/local-authority/32UF,Housing Landlord Manager,Void Repairs,02/10/2014,IJ00033053,1375.00,South Holland Maintenance Ltd,
South Holland District Council,http://statistics.data.gov.uk/id/local-authority/32UF,Capital,Works to Buildings (main Contractor),02/10/2014,IJ00033067,1885.00,Stuart Taplin,
South Holland District Council,http://statistics.data.gov.uk/id/local-authority/32UF,Environmental Services,Agency Staff,02/10/2014,IJ00033035,63.18,The Best Connection Group Ltd,
South Holland District Council,http://statistics.data.gov.uk/id/local-authority/32UF,Environmental Services,Agency Staff,02/10/2014,IJ00033035,883.56,The Best Connection Group Ltd,
South Holland District Council,http://statistics.data.gov.uk/id/local-authority/32UF,Environmental Services,Agency Staff,02/10/2014,IJ00033035,296.46,The Best Connection Group Ltd,
South Holland District Council,http://statistics.data.gov.uk/id/local-authority/32UF,Community Development,Film and Entertainment Costs,02/10/2014,IJ00033109,507.87,Warner Bros Distributors Ltd,
South Holland District Council,http://statistics.data.gov.uk/id/local-authority/32UF,Environmental Services,Professional & Contractors Fees,02/10/2014,IJ00033131,650.00,West & East Anglia Asbestos Removals Ltd,
South Holland District Council,http://statistics.data.gov.uk/id/local-authority/32UF,Housing Landlord Manager,Void Repairs,02/10/2014,IJ00033192,590.00,Spotless Cleaning,
South Holland District Council,http://statistics.data.gov.uk/id/local-authority/32UF,HR,Staff Training Expenses,02/10/2014,IJ00033068,1000.00,ARTS DEVELOPMENT UK,
South Holland District Council,http://statistics.data.gov.uk/id/local-authority/32UF,Planning,Telephones,02/10/2014,IJ00033235,5.50,DAISY COMMUNICATIONS LTD,
South Holland District Council,http://statistics.data.gov.uk/id/local-authority/32UF,Housing Landlord Manager,Telephones,02/10/2014,IJ00033235,907.74,DAISY COMMUNICATIONS LTD,
South Holland District Council,http://statistics.data.gov.uk/id/local-authority/32UF,Finance,Telephones,02/10/2014,IJ00033235,846.43,DAISY COMMUNICATIONS LTD,
South Holland District Council,http://statistics.data.gov.uk/id/local-authority/32UF,Environmental Health,Telephones,02/10/2014,IJ00033235,10.99,DAISY COMMUNICATIONS LTD,
South Holland District Council,http://statistics.data.gov.uk/id/local-authority/32UF,Asset and Property,Telephones,02/10/2014,IJ00033235,21.98,DAISY COMMUNICATIONS LTD,
South Holland District Council,http://statistics.data.gov.uk/id/local-authority/32UF,Building Control,Telephones,02/10/2014,IJ00033235,5.49,DAISY COMMUNICATIONS LTD,
South Holland District Council,http://statistics.data.gov.uk/id/local-authority/32UF,Environmental Services,Telephones,02/10/2014,IJ00033235,10.99,DAISY COMMUNICATIONS LTD,
South Holland District Council,http://statistics.data.gov.uk/id/local-authority/32UF,Housing Landlord Manager,Telephones,02/10/2014,IJ00033235,11.07,DAISY COMMUNICATIONS LTD,
South Holland District Council,http://statistics.data.gov.uk/id/local-authority/32UF,Environmental Services,Telephones,02/10/2014,IJ00033235,11.39,DAISY COMMUNICATIONS LTD,
South Holland District Council,http://statistics.data.gov.uk/id/local-authority/32UF,Environmental Services,Telephones,02/10/2014,IJ00033235,11.26,DAISY COMMUNICATIONS LTD,
South Holland District Council,http://statistics.data.gov.uk/id/local-authority/32UF,Environmental Health,Telephones,02/10/2014,IJ00033235,10.99,DAISY COMMUNICATIONS LTD,
South Holland District Council,http://statistics.data.gov.uk/id/local-authority/32UF,Housing Landlord Manager,Telephones,02/10/2014,IJ00033235,10.99,DAISY COMMUNICATIONS LTD,
South Holland District Council,http://statistics.data.gov.uk/id/local-authority/32UF,Asset and Property,Telephones,02/10/2014,IJ00033235,10.97,DAISY COMMUNICATIONS LTD,
South Holland District Council,http://statistics.data.gov.uk/id/local-authority/32UF,Housing Landlord Manager,Telephones,02/10/2014,IJ00033235,16.79,DAISY COMMUNICATIONS LTD,
South Holland District Council,http://statistics.data.gov.uk/id/local-authority/32UF,Finance,Telephones,02/10/2014,IJ00033235,177.05,DAISY COMMUNICATIONS LTD,
South Holland District Council,http://statistics.data.gov.uk/id/local-authority/32UF,Finance,Telephones,02/10/2014,IJ00033235,10.99,DAISY COMMUNICATIONS LTD,
South Holland District Council,http://statistics.data.gov.uk/id/local-authority/32UF,Community Development,Telephones,02/10/2014,IJ00033235,11.73,DAISY COMMUNICATIONS LTD,
South Holland District Council,http://statistics.data.gov.uk/id/local-authority/32UF,Community Development,Telephones,02/10/2014,IJ00033235,10.99,DAISY COMMUNICATIONS LTD,
South Holland District Council,http://statistics.data.gov.uk/id/local-authority/32UF,Community Development,Telephones,02/10/2014,IJ00033235,44.13,DAISY COMMUNICATIONS LTD,
South Holland District Council,http://statistics.data.gov.uk/id/local-authority/32UF,Community Development,Telephones,02/10/2014,IJ00033235,22.12,DAISY COMMUNICATIONS LTD,
South Holland District Council,http://statistics.data.gov.uk/id/local-authority/32UF,Communications,Telephones,02/10/2014,IJ00033235,10.99,DAISY COMMUNICATIONS LTD,
South Holland District Council,http://statistics.data.gov.uk/id/local-authority/32UF,Environmental Services,Course Fees,02/10/2014,IJ00033163,1022.14,Pristine Condition Ltd,
South Holland District Council,http://statistics.data.gov.uk/id/local-authority/32UF,Capital,Works to Buildings (main Contractor),02/10/2014,IJ00033063,6000.00,MPL HOME IMPROVEMENTS SERVICES LINCS LTD,
South Holland District Council,http://statistics.data.gov.uk/id/local-authority/32UF,Capital,Works to Buildings (main Contractor),02/10/2014,IJ00033119,4500.00,MPL HOME IMPROVEMENTS SERVICES LINCS LTD,
South Holland District Council,http://statistics.data.gov.uk/id/local-authority/32UF,Democratic Services,Furniture and Equipment,02/10/2014,IJ00033146,955.20,ACT NOW TRAINING LTD,
South Holland District Council,http://statistics.data.gov.uk/id/local-authority/32UF,Community Development,Other Miscellaneous Expenses,02/10/2014,IJ00033046,700.00,Cook Connect Ltd,
South Holland District Council,http://statistics.data.gov.uk/id/local-authority/32UF,Democratic Services,Other Miscellaneous Expenses,02/10/2014,IJ00033120,547.40,Spalding Local Action Group,
South Holland District Council,http://statistics.data.gov.uk/id/local-authority/32UF,Environmental Services,Materials and Consumables,02/10/2014,IJ00033073,390.00,John Metcalfe,
South Holland District Council,http://statistics.data.gov.uk/id/local-authority/32UF,Environmental Services,Materials and Consumables,02/10/2014,IJ00033073,750.00,John Metcalfe,
South Holland District Council,http://statistics.data.gov.uk/id/local-authority/32UF,Community Development,Performers and Entertainers Fees,02/10/2014,IJ00033107,785.00,Funhouse Comedy,
South Holland District Council,http://statistics.data.gov.uk/id/local-authority/32UF,Economic Development,Professional & Contractors Fees,02/10/2014,IJ00033143,500.00,Lava Marketing Communications Limited,
South Holland District Council,http://statistics.data.gov.uk/id/local-authority/32UF,Housing Landlord Manager,Damp Proofing,02/10/2014,IJ00033065,4475.57,Bersche - Rolt Ltd,
South Holland District Council,http://statistics.data.gov.uk/id/local-authority/32UF,Planning,Professional & Contractors Fees,02/10/2014,IJ00033126,1105.00,MatchTech Group Plc,
South Holland District Council,http://statistics.data.gov.uk/id/local-authority/32UF,Planning,Professional & Contractors Fees,02/10/2014,IJ00033127,1178.13,MatchTech Group Plc,
South Holland District Council,http://statistics.data.gov.uk/id/local-authority/32UF,Planning,Professional & Contractors Fees,02/10/2014,IJ00033128,1137.50,MatchTech Group Plc,
South Holland District Council,http://statistics.data.gov.uk/id/local-authority/32UF,Economic Development,Professional & Contractors Fees,02/10/2014,IJ00033144,6687.90,RESOURCE4GROWTH C I C LTD,
South Holland District Council,http://statistics.data.gov.uk/id/local-authority/32UF,Economic Development,Professional & Contractors Fees,02/10/2014,IJ00033064,650.00,Peterborough Environment City Trust,
South Holland District Council,http://statistics.data.gov.uk/id/local-authority/32UF,Community Development,Performers and Entertainers Fees,02/10/2014,IJ00033086,5433.05,Bound and Gagged Comedy,
South Holland District Council,http://statistics.data.gov.uk/id/local-authority/32UF,Democratic Services,Chairman's Costs,02/10/2014,IJ00033026,837.50,C H Stennett Ltd,
South Holland District Council,http://statistics.data.gov.uk/id/local-authority/32UF,Housing Landlord Manager,Computer Hardware Purchase,02/10/2014,IJ00033039,10905.30,Misco,
South Holland District Council,http://statistics.data.gov.uk/id/local-authority/32UF,ICT and Customer Services,Furniture and Equipment,02/10/2014,IJ00033041,559.65,Misco,
South Holland District Council,http://statistics.data.gov.uk/id/local-authority/32UF,ICT and Customer Services,Furniture and Equipment,02/10/2014,IJ00033042,666.75,Misco,
South Holland District Council,http://statistics.data.gov.uk/id/local-authority/32UF,ICT and Customer Services,Furniture and Equipment,02/10/2014,IJ00033043,1883.19,Misco,
South Holland District Council,http://statistics.data.gov.uk/id/local-authority/32UF,Community Development,Leisure Management,02/10/2014,IJ00033076,3255.00,Leisure Net Solutions,
South Holland District Council,http://statistics.data.gov.uk/id/local-authority/32UF,Community Development,Furniture and Equipment,02/10/2014,IJ00033051,1500.00,SPALDING AND DISTRICT INDOOR BOWLS CLUB,
South Holland District Council,http://statistics.data.gov.uk/id/local-authority/32UF,Housing Landlord Manager,Housing Rent Refunds,02/10/2014,IJ00033020,962.10,BIRUTE NEVERAUSKIENE,
South Holland District Council,http://statistics.data.gov.uk/id/local-authority/32UF,Environmental Services,Commercial Vehicle Lease,03/10/2014,IJ00033244,710.65,NORTHRIDGE FINANCE LTD,
South Holland District Council,http://statistics.data.gov.uk/id/local-authority/32UF,Finance,Professional & Contractors Fees,08/10/2014,IJ00033396,556.71,Lloyds TSB,
South Holland District Council,http://statistics.data.gov.uk/id/local-authority/32UF,Finance,Professional & Contractors Fees,08/10/2014,IJ00033397,573.84,Lloyds TSB,
South Holland District Council,http://statistics.data.gov.uk/id/local-authority/32UF,Housing Landlord Manager,Fuel & Oil,08/10/2014,IJ00033395,559.11,C H Stennett Ltd,
South Holland District Council,http://statistics.data.gov.uk/id/local-authority/32UF,Environmental Services,Fuel & Oil,08/10/2014,IJ00033395,310.29,C H Stennett Ltd,
South Holland District Council,http://statistics.data.gov.uk/id/local-authority/32UF,Environmental Services,Fuel & Oil,08/10/2014,IJ00033395,1537.72,C H Stennett Ltd,
South Holland District Council,http://statistics.data.gov.uk/id/local-authority/32UF,Environmental Services,Fuel & Oil,08/10/2014,IJ00033395,624.37,C H Stennett Ltd,
South Holland District Council,http://statistics.data.gov.uk/id/local-authority/32UF,Environmental Services,Fuel & Oil,08/10/2014,IJ00033395,2770.89,C H Stennett Ltd,
South Holland District Council,http://statistics.data.gov.uk/id/local-authority/32UF,Housing Landlord Manager,Fuel & Oil,08/10/2014,IJ00033395,318.13,C H Stennett Ltd,
South Holland District Council,http://statistics.data.gov.uk/id/local-authority/32UF,Housing Landlord Manager,Fuel & Oil,08/10/2014,IJ00033395,205.14,C H Stennett Ltd,
South Holland District Council,http://statistics.data.gov.uk/id/local-authority/32UF,Environmental Services,Fuel & Oil,08/10/2014,IJ00033395,22.96,C H Stennett Ltd,
South Holland District Council,http://statistics.data.gov.uk/id/local-authority/32UF,Environmental Services,Fuel & Oil,08/10/2014,IJ00033395,6.51,C H Stennett Ltd,
South Holland District Council,http://statistics.data.gov.uk/id/local-authority/32UF,Environmental Health,Fuel & Oil,08/10/2014,IJ00033395,42.34,C H Stennett Ltd,
South Holland District Council,http://statistics.data.gov.uk/id/local-authority/32UF,Environmental Services,Agency Staff,09/10/2014,IJ00033268,524.88,247 Personnel Ltd,
South Holland District Council,http://statistics.data.gov.uk/id/local-authority/32UF,Environmental Services,Agency Staff,09/10/2014,IJ00033268,243.10,247 Personnel Ltd,
South Holland District Council,http://statistics.data.gov.uk/id/local-authority/32UF,Environmental Services,Agency Staff,09/10/2014,IJ00033268,82.88,247 Personnel Ltd,
South Holland District Council,http://statistics.data.gov.uk/id/local-authority/32UF,Environmental Services,Agency Staff,09/10/2014,IJ00033259,666.00,247 Personnel Ltd,
South Holland District Council,http://statistics.data.gov.uk/id/local-authority/32UF,Asset and Property,Buildings Maintenance - Responsive,09/10/2014,IJ00033346,700.00,Adcock Refrigeration & Air Conditioning Ltd,
South Holland District Council,http://statistics.data.gov.uk/id/local-authority/32UF,Community Development,Other Miscellaneous Expenses,09/10/2014,IJ00033330,715.30,At Events Services,
South Holland District Council,http://statistics.data.gov.uk/id/local-authority/32UF,Housing Landlord Manager,Cesspool Empying,09/10/2014,IJ00033343,433.00,Bates Environmental Ltd,
South Holland District Council,http://statistics.data.gov.uk/id/local-authority/32UF,Housing Landlord Manager,Sewerage Treatment Works,09/10/2014,IJ00033343,3125.00,Bates Environmental Ltd,
South Holland District Council,http://statistics.data.gov.uk/id/local-authority/32UF,Environmental Services,Agency Staff,09/10/2014,IJ00033323,141.51,Blue Arrow Ltd,
South Holland District Council,http://statistics.data.gov.uk/id/local-authority/32UF,Environmental Services,Agency Staff,09/10/2014,IJ00033323,678.71,Blue Arrow Ltd,
South Holland District Council,http://statistics.data.gov.uk/id/local-authority/32UF,Environmental Services,Agency Staff,09/10/2014,IJ00033323,1798.30,Blue Arrow Ltd,
South Holland District Council,http://statistics.data.gov.uk/id/local-authority/32UF,Environmental Services,Agency Staff,09/10/2014,IJ00033323,846.13,Blue Arrow Ltd,
South Holland District Council,http://statistics.data.gov.uk/id/local-authority/32UF,Housing Landlord Manager,Void Repairs,09/10/2014,IJ00033444,580.00,Castlebuild Scaffolding Ltd,
South Holland District Council,http://statistics.data.gov.uk/id/local-authority/32UF,Housing Landlord Manager,Fuel & Oil,09/10/2014,IJ00033288,432.02,C H Jones Ltd,
South Holland District Council,http://statistics.data.gov.uk/id/local-authority/32UF,Environmental Services,Fuel & Oil,09/10/2014,IJ00033288,166.37,C H Jones Ltd,
South Holland District Council,http://statistics.data.gov.uk/id/local-authority/32UF,Environmental Services,Fuel & Oil,09/10/2014,IJ00033288,1541.52,C H Jones Ltd,
South Holland District Council,http://statistics.data.gov.uk/id/local-authority/32UF,Environmental Services,Fuel & Oil,09/10/2014,IJ00033288,523.06,C H Jones Ltd,
South Holland District Council,http://statistics.data.gov.uk/id/local-authority/32UF,Environmental Services,Fuel & Oil,09/10/2014,IJ00033288,3052.67,C H Jones Ltd,
South Holland District Council,http://statistics.data.gov.uk/id/local-authority/32UF,Housing Landlord Manager,Fuel & Oil,09/10/2014,IJ00033288,312.82,C H Jones Ltd,
South Holland District Council,http://statistics.data.gov.uk/id/local-authority/32UF,Housing Landlord Manager,Fuel & Oil,09/10/2014,IJ00033288,63.85,C H Jones Ltd,
South Holland District Council,http://statistics.data.gov.uk/id/local-authority/32UF,Environmental Services,Fuel & Oil,09/10/2014,IJ00033288,22.20,C H Jones Ltd,
South Holland District Council,http://statistics.data.gov.uk/id/local-authority/32UF,Environmental Services,Fuel & Oil,09/10/2014,IJ00033288,3.88,C H Jones Ltd,
South Holland District Council,http://statistics.data.gov.uk/id/local-authority/32UF,Environmental Health,Fuel & Oil,09/10/2014,IJ00033288,39.86,C H Jones Ltd,
South Holland District Council,http://statistics.data.gov.uk/id/local-authority/32UF,Environmental Services,Fuel & Oil,09/10/2014,IJ00033288,82.63,C H Jones Ltd,
South Holland District Council,http://statistics.data.gov.uk/id/local-authority/32UF,Housing Landlord Manager,Fuel & Oil,09/10/2014,IJ00033477,559.11,C H Jones Ltd,
South Holland District Council,http://statistics.data.gov.uk/id/local-authority/32UF,Environmental Services,Fuel & Oil,09/10/2014,IJ00033477,310.29,C H Jones Ltd,
South Holland District Council,http://statistics.data.gov.uk/id/local-authority/32UF,Environmental Services,Fuel & Oil,09/10/2014,IJ00033477,1537.72,C H Jones Ltd,
South Holland District Council,http://statistics.data.gov.uk/id/local-authority/32UF,Environmental Services,Fuel & Oil,09/10/2014,IJ00033477,624.37,C H Jones Ltd,
South Holland District Council,http://statistics.data.gov.uk/id/local-authority/32UF,Environmental Services,Fuel & Oil,09/10/2014,IJ00033477,2770.89,C H Jones Ltd,
South Holland District Council,http://statistics.data.gov.uk/id/local-authority/32UF,Housing Landlord Manager,Fuel & Oil,09/10/2014,IJ00033477,318.13,C H Jones Ltd,
South Holland District Council,http://statistics.data.gov.uk/id/local-authority/32UF,Housing Landlord Manager,Fuel & Oil,09/10/2014,IJ00033477,205.14,C H Jones Ltd,
South Holland District Council,http://statistics.data.gov.uk/id/local-authority/32UF,Environmental Services,Fuel & Oil,09/10/2014,IJ00033477,22.96,C H Jones Ltd,
South Holland District Council,http://statistics.data.gov.uk/id/local-authority/32UF,Environmental Services,Fuel & Oil,09/10/2014,IJ00033477,6.51,C H Jones Ltd,
South Holland District Council,http://statistics.data.gov.uk/id/local-authority/32UF,Environmental Health,Fuel & Oil,09/10/2014,IJ00033477,42.34,C H Jones Ltd,
South Holland District Council,http://statistics.data.gov.uk/id/local-authority/32UF,Community Development,External Printing and Design Costs,09/10/2014,IJ00033341,538.00,Classic Printers,
South Holland District Council,http://statistics.data.gov.uk/id/local-authority/32UF,Environmental Health,Other Miscellaneous Expenses,09/10/2014,IJ00033385,352.00,Compass Point Business Srvcs (East Coast) Ltd,
South Holland District Council,http://statistics.data.gov.uk/id/local-authority/32UF,HR,Other Employee Expenses,09/10/2014,IJ00033385,440.00,Compass Point Business Srvcs (East Coast) Ltd,
South Holland District Council,http://statistics.data.gov.uk/id/local-authority/32UF,Housing,Grants and Contributions to Outside Bodies- No Service Recei,09/10/2014,IJ00033324,10718.00,Dolphin Mobility East Mids Ltd,
South Holland District Council,http://statistics.data.gov.uk/id/local-authority/32UF,Capital,Works to Buildings (main Contractor),09/10/2014,IJ00033325,659.00,Dolphin Mobility East Mids Ltd,
South Holland District Council,http://statistics.data.gov.uk/id/local-authority/32UF,Capital,Works to Buildings (main Contractor),09/10/2014,IJ00033326,1315.00,Dolphin Mobility East Mids Ltd,
South Holland District Council,http://statistics.data.gov.uk/id/local-authority/32UF,Housing Landlord Manager,Buildings Maintenance - Responsive,09/10/2014,IJ00033370,600.00,Elston Environmental Services,
South Holland District Council,http://statistics.data.gov.uk/id/local-authority/32UF,Environmental Services,Electricity,09/10/2014,IJ00033476,573.44,E.On,
South Holland District Council,http://statistics.data.gov.uk/id/local-authority/32UF,Environmental Services,Electricity,09/10/2014,IJ00033476,286.73,E.On,
South Holland District Council,http://statistics.data.gov.uk/id/local-authority/32UF,Environmental Services,Electricity,09/10/2014,IJ00033476,573.44,E.On,
South Holland District Council,http://statistics.data.gov.uk/id/local-authority/32UF,Community Development,Other Miscellaneous Expenses,09/10/2014,IJ00033292,750.00,Fools Paradise Ltd,
South Holland District Council,http://statistics.data.gov.uk/id/local-authority/32UF,Community Development,Other Miscellaneous Expenses,09/10/2014,IJ00033322,1155.00,Fools Paradise Ltd,
South Holland District Council,http://statistics.data.gov.uk/id/local-authority/32UF,Community Development,Other Miscellaneous Expenses,09/10/2014,IJ00033322,710.00,Fools Paradise Ltd,
South Holland District Council,http://statistics.data.gov.uk/id/local-authority/32UF,Capital,Works to Buildings (main Contractor),09/10/2014,IJ00033254,29226.00,Gaswise Services Limited,
South Holland District Council,http://statistics.data.gov.uk/id/local-authority/32UF,Housing Landlord Manager,Buildings Maintenance - Responsive,09/10/2014,IJ00033450,1000.00,G W Engineering (Lincs) Ltd,
South Holland District Council,http://statistics.data.gov.uk/id/local-authority/32UF,Environmental Services,Furniture and Equipment,09/10/2014,IJ00033270,1747.31,Ing Lease (Uk) Ltd,
South Holland District Council,http://statistics.data.gov.uk/id/local-authority/32UF,Environmental Services,Commercial Vehicle Lease,09/10/2014,IJ00033270,5640.00,Ing Lease (Uk) Ltd,
South Holland District Council,http://statistics.data.gov.uk/id/local-authority/32UF,Housing Landlord Manager,Agency Staff,09/10/2014,IJ00033272,73.86,Integrity Plus Ltd,
South Holland District Council,http://statistics.data.gov.uk/id/local-authority/32UF,Housing Landlord Manager,Agency Staff,09/10/2014,IJ00033272,393.86,Integrity Plus Ltd,
South Holland District Council,http://statistics.data.gov.uk/id/local-authority/32UF,Housing Landlord Manager,Agency Staff,09/10/2014,IJ00033272,147.71,Integrity Plus Ltd,
South Holland District Council,http://statistics.data.gov.uk/id/local-authority/32UF,Environmental Services,Agency Staff,09/10/2014,IJ00033269,363.34,Integrity Plus Ltd,
South Holland District Council,http://statistics.data.gov.uk/id/local-authority/32UF,Environmental Services,Agency Staff,09/10/2014,IJ00033269,363.34,Integrity Plus Ltd,
South Holland District Council,http://statistics.data.gov.uk/id/local-authority/32UF,Environmental Services,Agency Staff,09/10/2014,IJ00033475,427.17,Integrity Plus Ltd,
South Holland District Council,http://statistics.data.gov.uk/id/local-authority/32UF,Environmental Services,Agency Staff,09/10/2014,IJ00033475,299.51,Integrity Plus Ltd,
South Holland District Council,http://statistics.data.gov.uk/id/local-authority/32UF,Housing Landlord Manager,Materials and Consumables,09/10/2014,IJ00033462,3692.60,Jackson Buildbase,
South Holland District Council,http://statistics.data.gov.uk/id/local-authority/32UF,Housing Landlord Manager,Materials and Consumables,09/10/2014,IJ00033462,2342.19,Jackson Buildbase,
South Holland District Council,http://statistics.data.gov.uk/id/local-authority/32UF,Housing Landlord Manager,Materials and Consumables,09/10/2014,IJ00033462,463.62,Jackson Buildbase,
South Holland District Council,http://statistics.data.gov.uk/id/local-authority/32UF,Revs and Bens,VAT Customs and Excise,09/10/2014,IJ00033302,710.33,Jacobs Certificated Bailiffs,
South Holland District Council,http://statistics.data.gov.uk/id/local-authority/32UF,Housing Landlord Manager,Agency Staff,09/10/2014,IJ00033249,848.78,James Andrews Recruitment Solutions,
South Holland District Council,http://statistics.data.gov.uk/id/local-authority/32UF,Housing Landlord Manager,Agency Staff,09/10/2014,IJ00033250,848.78,James Andrews Recruitment Solutions,
South Holland District Council,http://statistics.data.gov.uk/id/local-authority/32UF,Housing Landlord Manager,Agency Staff,09/10/2014,IJ00033251,848.78,James Andrews Recruitment Solutions,
South Holland District Council,http://statistics.data.gov.uk/id/local-authority/32UF,Chief Executive,Grants and Contributions to Outside Bodies- No Service Recei,09/10/2014,IJ00033333,2832.00,Lincolnshire County Council,
South Holland District Council,http://statistics.data.gov.uk/id/local-authority/32UF,Environmental Services,Furniture and Equipment,09/10/2014,IJ00033278,698.40,Lms Lincoln Ltd,
South Holland District Council,http://statistics.data.gov.uk/id/local-authority/32UF,Housing Landlord Manager,Buildings Maintenance - Responsive,09/10/2014,IJ00033403,4702.30,M & R Glass & Glazing Ltd,
South Holland District Council,http://statistics.data.gov.uk/id/local-authority/32UF,Housing Landlord Manager,Buildings Maintenance - Responsive,09/10/2014,IJ00033404,1393.90,M & R Glass & Glazing Ltd,
South Holland District Council,http://statistics.data.gov.uk/id/local-authority/32UF,Housing Landlord Manager,Commercial Vehicle Lease,09/10/2014,IJ00033407,520.00,Northgate Vehicle Hire (East Midlands) Ltd,
South Holland District Council,http://statistics.data.gov.uk/id/local-authority/32UF,Planning,Grants and Contributions to Outside Bodies- No Service Recei,09/10/2014,IJ00033433,528.00,Plann.It Limited,
South Holland District Council,http://statistics.data.gov.uk/id/local-authority/32UF,Housing Landlord Manager,Materials and Consumables,09/10/2014,IJ00033457,608.02,Rexel Uk Ltd,
South Holland District Council,http://statistics.data.gov.uk/id/local-authority/32UF,Housing Landlord Manager,Materials and Consumables,09/10/2014,IJ00033465,606.52,Rexel Uk Ltd,
South Holland District Council,http://statistics.data.gov.uk/id/local-authority/32UF,Environmental Services,Professional & Contractors Fees,09/10/2014,IJ00033258,3908.89,South Holland Maintenance Ltd,
South Holland District Council,http://statistics.data.gov.uk/id/local-authority/32UF,Housing Landlord Manager,Buildings Maintenance - Responsive,09/10/2014,IJ00033435,710.00,South Holland Maintenance Ltd,
South Holland District Council,http://statistics.data.gov.uk/id/local-authority/32UF,Housing Landlord Manager,Buildings Maintenance - Responsive,09/10/2014,IJ00033436,1045.00,South Holland Maintenance Ltd,
South Holland District Council,http://statistics.data.gov.uk/id/local-authority/32UF,Environmental Services,Rent and Lease Payments,09/10/2014,IJ00033474,695.70,Spalding Rectory Feoffees,
South Holland District Council,http://statistics.data.gov.uk/id/local-authority/32UF,Capital,Works to Buildings (main Contractor),09/10/2014,IJ00033391,1987.00,Stuart Taplin,
South Holland District Council,http://statistics.data.gov.uk/id/local-authority/32UF,Community Development,Other Miscellaneous Expenses,09/10/2014,IJ00033393,1021.25,Tega Hire,
South Holland District Council,http://statistics.data.gov.uk/id/local-authority/32UF,Environmental Services,Agency Staff,09/10/2014,IJ00033387,514.68,The Best Connection Group Ltd,
South Holland District Council,http://statistics.data.gov.uk/id/local-authority/32UF,Environmental Services,Agency Staff,09/10/2014,IJ00033387,592.45,The Best Connection Group Ltd,
South Holland District Council,http://statistics.data.gov.uk/id/local-authority/32UF,Environmental Services,Agency Staff,09/10/2014,IJ00033387,136.08,The Best Connection Group Ltd,
South Holland District Council,http://statistics.data.gov.uk/id/local-authority/32UF,Capital,Works to Buildings (main Contractor),09/10/2014,IJ00033312,572.20,Winkhaus Uk Ltd,
South Holland District Council,http://statistics.data.gov.uk/id/local-authority/32UF,Environmental Health,Professional & Contractors Fees,09/10/2014,IJ00033344,810.00,SAFETY LINK CONSULTANT SERVICES,
South Holland District Council,http://statistics.data.gov.uk/id/local-authority/32UF,Housing Landlord Manager,Void Repairs,09/10/2014,IJ00033408,595.00,B J ROOFING,
South Holland District Council,http://statistics.data.gov.uk/id/local-authority/32UF,Housing Landlord Manager,Buildings Maintenance - Responsive,09/10/2014,IJ00033410,2510.00,B J ROOFING,
South Holland District Council,http://statistics.data.gov.uk/id/local-authority/32UF,Housing Landlord Manager,Buildings Maintenance - Responsive,09/10/2014,IJ00033412,2050.00,B J ROOFING,
South Holland District Council,http://statistics.data.gov.uk/id/local-authority/32UF,Housing Landlord Manager,Buildings Maintenance - Responsive,09/10/2014,IJ00033414,2650.00,B J ROOFING,
South Holland District Council,http://statistics.data.gov.uk/id/local-authority/32UF,Housing Landlord Manager,Buildings Maintenance - Responsive,09/10/2014,IJ00033416,1655.00,B J ROOFING,
South Holland District Council,http://statistics.data.gov.uk/id/local-authority/32UF,Democratic Services,Other Miscellaneous Expenses,09/10/2014,IJ00033486,867.00,Crowland in Bloom,
South Holland District Council,http://statistics.data.gov.uk/id/local-authority/32UF,Housing,Grants and Contributions to Outside Bodies- No Service Recei,09/10/2014,IJ00033392,2595.00,MPL HOME IMPROVEMENTS SERVICES LINCS LTD,
South Holland District Council,http://statistics.data.gov.uk/id/local-authority/32UF,Environmental Services,Furniture and Equipment,09/10/2014,IJ00033479,771.54,M B Supplies,
South Holland District Council,http://statistics.data.gov.uk/id/local-authority/32UF,Democratic Services,Postages,09/10/2014,IJ00033304,1702.40,ELECTORAL REFORM SERVICES,
South Holland District Council,http://statistics.data.gov.uk/id/local-authority/32UF,Democratic Services,Postages,09/10/2014,IJ00033305,2747.32,ELECTORAL REFORM SERVICES,
South Holland District Council,http://statistics.data.gov.uk/id/local-authority/32UF,Democratic Services,Postages,09/10/2014,IJ00033306,17459.58,ELECTORAL REFORM SERVICES,
South Holland District Council,http://statistics.data.gov.uk/id/local-authority/32UF,Democratic Services,Postages,09/10/2014,IJ00033307,2482.53,ELECTORAL REFORM SERVICES,
South Holland District Council,http://statistics.data.gov.uk/id/local-authority/32UF,Democratic Services,Postages,09/10/2014,IJ00033308,1201.17,ELECTORAL REFORM SERVICES,
South Holland District Council,http://statistics.data.gov.uk/id/local-authority/32UF,Community Development,Other Miscellaneous Expenses,09/10/2014,IJ00033338,1600.00,Cook Connect Ltd,
South Holland District Council,http://statistics.data.gov.uk/id/local-authority/32UF,Housing Landlord Manager,Furniture and Equipment,09/10/2014,IJ00033463,1226.08,Hilti GB Ltd,
South Holland District Council,http://statistics.data.gov.uk/id/local-authority/32UF,Housing Landlord Manager,Furniture and Equipment,09/10/2014,IJ00033463,722.57,Hilti GB Ltd,
South Holland District Council,http://statistics.data.gov.uk/id/local-authority/32UF,Community Development,Performers and Entertainers Fees,09/10/2014,IJ00033380,3039.18,Singalonga Productions Limited,
South Holland District Council,http://statistics.data.gov.uk/id/local-authority/32UF,Capital,Works to Buildings (main Contractor),09/10/2014,IJ00033488,2220.00,MCP Environmental,
South Holland District Council,http://statistics.data.gov.uk/id/local-authority/32UF,Capital,Works to Buildings (main Contractor),09/10/2014,IJ00033320,134740.00,Willmott Dixon Partnerships Ltd,
South Holland District Council,http://statistics.data.gov.uk/id/local-authority/32UF,Capital,Works to Buildings (main Contractor),09/10/2014,IJ00033491,77805.00,Willmott Dixon Partnerships Ltd,
South Holland District Council,http://statistics.data.gov.uk/id/local-authority/32UF,Housing Landlord Manager,Professional & Contractors Fees,09/10/2014,IJ00033489,8160.00,DMW Environmental Safety Ltd,
South Holland District Council,http://statistics.data.gov.uk/id/local-authority/32UF,Planning,Professional & Contractors Fees,09/10/2014,IJ00033478,1121.25,MatchTech Group Plc,
South Holland District Council,http://statistics.data.gov.uk/id/local-authority/32UF,Economic Development,Grants and Contributions to Outside Bodies- No Service Recei,09/10/2014,IJ00033372,2500.00,Affinity Pub Company Ltd,
South Holland District Council,http://statistics.data.gov.uk/id/local-authority/32UF,Economic Development,Grants and Contributions to Outside Bodies- No Service Recei,09/10/2014,IJ00033373,10000.00,Bernard Holmes Precision Limited,
South Holland District Council,http://statistics.data.gov.uk/id/local-authority/32UF,Housing Landlord Manager,Buildings Maintenance - Responsive,09/10/2014,IJ00033402,625.00,FIRST CALL CARPETS,
South Holland District Council,http://statistics.data.gov.uk/id/local-authority/32UF,Democratic Services,Other Miscellaneous Expenses,09/10/2014,IJ00033365,1500.00,PCC of Cowbit,
South Holland District Council,http://statistics.data.gov.uk/id/local-authority/32UF,Community Development,Performers and Entertainers Fees,09/10/2014,IJ00033390,1500.00,Jay Phelps,
South Holland District Council,http://statistics.data.gov.uk/id/local-authority/32UF,Asset and Property,Agency Staff,16/10/2014,IJ00033567,748.50,5 Star Facility Management,
South Holland District Council,http://statistics.data.gov.uk/id/local-authority/32UF,Community Development,Water and Sewerage Charges,16/10/2014,IJ00033674,564.22,Anglian Water,
South Holland District Council,http://statistics.data.gov.uk/id/local-authority/32UF,Housing Landlord Manager,Computer Software Licence Costs,16/10/2014,IJ00033656,1863.50,Automico Limited,
South Holland District Council,http://statistics.data.gov.uk/id/local-authority/32UF,Housing Landlord Manager,Buildings Maintenance - Responsive,16/10/2014,IJ00033551,2569.00,Bates Environmental Ltd,
South Holland District Council,http://statistics.data.gov.uk/id/local-authority/32UF,Environmental Services,Agency Staff,16/10/2014,IJ00033566,434.74,Blue Arrow Ltd,
South Holland District Council,http://statistics.data.gov.uk/id/local-authority/32UF,Environmental Services,Agency Staff,16/10/2014,IJ00033566,1013.11,Blue Arrow Ltd,
South Holland District Council,http://statistics.data.gov.uk/id/local-authority/32UF,Environmental Services,Agency Staff,16/10/2014,IJ00033566,1815.58,Blue Arrow Ltd,
South Holland District Council,http://statistics.data.gov.uk/id/local-authority/32UF,Environmental Services,Agency Staff,16/10/2014,IJ00033566,522.73,Blue Arrow Ltd,
South Holland District Council,http://statistics.data.gov.uk/id/local-authority/32UF,Housing Landlord Manager,Other Communication Costs,16/10/2014,IJ00033578,7131.94,Boston Mayflower Ltd,
South Holland District Council,http://statistics.data.gov.uk/id/local-authority/32UF,Economic Development,Professional & Contractors Fees,16/10/2014,IJ00033561,1504.94,Breckland Council,
South Holland District Council,http://statistics.data.gov.uk/id/local-authority/32UF,Chief Executive,Shared Management,16/10/2014,IJ00033680,51306.83,Breckland Council,
South Holland District Council,http://statistics.data.gov.uk/id/local-authority/32UF,Chief Executive,Shared Management,16/10/2014,IJ00033682,30938.14,Breckland Council,
South Holland District Council,http://statistics.data.gov.uk/id/local-authority/32UF,Housing Landlord Manager,Sewerage Treatment Works,16/10/2014,IJ00033547,20010.18,C.G. Godfrey Ltd,
South Holland District Council,http://statistics.data.gov.uk/id/local-authority/32UF,Housing Landlord Manager,Sewerage Treatment Works,16/10/2014,IJ00033548,804.60,C.G. Godfrey Ltd,
South Holland District Council,http://statistics.data.gov.uk/id/local-authority/32UF,Environmental Services,Fuel & Oil,16/10/2014,IJ00033689,1322.80,Chandlers Oil And Gas,
South Holland District Council,http://statistics.data.gov.uk/id/local-authority/32UF,Environmental Services,Fuel & Oil,16/10/2014,IJ00033689,40.00,Chandlers Oil And Gas,
South Holland District Council,http://statistics.data.gov.uk/id/local-authority/32UF,Environmental Services,Maintenance,16/10/2014,IJ00033513,4459.47,C P Davidson & Sons Ltd,
South Holland District Council,http://statistics.data.gov.uk/id/local-authority/32UF,Environmental Services,Maintenance,16/10/2014,IJ00033534,569.96,C P Davidson & Sons Ltd,
South Holland District Council,http://statistics.data.gov.uk/id/local-authority/32UF,Environmental Services,Maintenance,16/10/2014,IJ00033534,4786.59,C P Davidson & Sons Ltd,
South Holland District Council,http://statistics.data.gov.uk/id/local-authority/32UF,Environmental Services,Maintenance,16/10/2014,IJ00033534,3220.62,C P Davidson & Sons Ltd,
South Holland District Council,http://statistics.data.gov.uk/id/local-authority/32UF,Environmental Services,Maintenance,16/10/2014,IJ00033534,736.15,C P Davidson & Sons Ltd,
South Holland District Council,http://statistics.data.gov.uk/id/local-authority/32UF,Community Development,Gas,16/10/2014,IJ00033693,569.77,Espo Gas And Electricity,
South Holland District Council,http://statistics.data.gov.uk/id/local-authority/32UF,Capital,Works to Buildings (main Contractor),16/10/2014,IJ00033546,700.00,Focus Consultants 2010 LLP,
South Holland District Council,http://statistics.data.gov.uk/id/local-authority/32UF,Capital,Works to Buildings (main Contractor),16/10/2014,IJ00033550,111245.00,Foster Property Maintenance Ltd,
South Holland District Council,http://statistics.data.gov.uk/id/local-authority/32UF,Community Development,Grants and Contributions to Outside Bodies- No Service Recei,16/10/2014,IJ00033676,2910.00,Gosberton Clough Pcc,
South Holland District Council,http://statistics.data.gov.uk/id/local-authority/32UF,Community Development,Buildings Maintenance - Responsive,16/10/2014,IJ00033662,1462.00,G.T.A. Barkworth,
South Holland District Council,http://statistics.data.gov.uk/id/local-authority/32UF,Revs and Bens,Court Costs,16/10/2014,IJ00033499,741.00,H M C S,
South Holland District Council,http://statistics.data.gov.uk/id/local-authority/32UF,Revs and Bens,Court Costs,16/10/2014,IJ00033499,138.00,H M C S,
South Holland District Council,http://statistics.data.gov.uk/id/local-authority/32UF,Democratic Services,Other Miscellaneous Expenses,16/10/2014,IJ00033558,590.00,Holbeach Parish Council,
South Holland District Council,http://statistics.data.gov.uk/id/local-authority/32UF,Housing Landlord Manager,Void Decoration,16/10/2014,IJ00033538,688.26,Homebase Limited,
South Holland District Council,http://statistics.data.gov.uk/id/local-authority/32UF,Housing Landlord Manager,Buildings Maintenance - Responsive,16/10/2014,IJ00033686,666.50,L Fragale,
South Holland District Council,http://statistics.data.gov.uk/id/local-authority/32UF,Housing Landlord Manager,Buildings Maintenance - Responsive,16/10/2014,IJ00033688,691.20,L Fragale,
South Holland District Council,http://statistics.data.gov.uk/id/local-authority/32UF,Environmental Services,Furniture and Equipment,16/10/2014,IJ00033638,1053.01,Lms Lincoln Ltd,
South Holland District Council,http://statistics.data.gov.uk/id/local-authority/32UF,Capital,Works to Buildings (main Contractor),16/10/2014,IJ00033560,1876.00,M E Goodyear Property Maintenance,
South Holland District Council,http://statistics.data.gov.uk/id/local-authority/32UF,Capital,Works to Buildings (main Contractor),16/10/2014,IJ00033527,1498.00,M E Goodyear Property Maintenance,
South Holland District Council,http://statistics.data.gov.uk/id/local-authority/32UF,Community Development,Grants and Contributions to Outside Bodies- No Service Recei,16/10/2014,IJ00033613,830.00,Nottinghamshire County Council,
South Holland District Council,http://statistics.data.gov.uk/id/local-authority/32UF,Capital,Works to Buildings (main Contractor),16/10/2014,IJ00033510,3725.00,Obam Lift Services Ltd,
South Holland District Council,http://statistics.data.gov.uk/id/local-authority/32UF,ICT and Customer Services,Computer Software Licence Costs,16/10/2014,IJ00033514,604.09,Ocella Ltd,
South Holland District Council,http://statistics.data.gov.uk/id/local-authority/32UF,Housing Landlord Manager,Electricity,16/10/2014,IJ00033565,96.13,Southern Electric,
South Holland District Council,http://statistics.data.gov.uk/id/local-authority/32UF,Housing Landlord Manager,Electricity,16/10/2014,IJ00033565,148.75,Southern Electric,
South Holland District Council,http://statistics.data.gov.uk/id/local-authority/32UF,Housing Landlord Manager,Electricity,16/10/2014,IJ00033565,123.62,Southern Electric,
South Holland District Council,http://statistics.data.gov.uk/id/local-authority/32UF,Housing Landlord Manager,Electricity,16/10/2014,IJ00033565,66.42,Southern Electric,
South Holland District Council,http://statistics.data.gov.uk/id/local-authority/32UF,Housing Landlord Manager,Electricity,16/10/2014,IJ00033565,66.42,Southern Electric,
South Holland District Council,http://statistics.data.gov.uk/id/local-authority/32UF,Housing Landlord Manager,Electricity,16/10/2014,IJ00033565,66.82,Southern Electric,
South Holland District Council,http://statistics.data.gov.uk/id/local-authority/32UF,Housing Landlord Manager,Electricity,16/10/2014,IJ00033565,69.53,Southern Electric,
South Holland District Council,http://statistics.data.gov.uk/id/local-authority/32UF,Housing Landlord Manager,Electricity,16/10/2014,IJ00033565,69.53,Southern Electric,
South Holland District Council,http://statistics.data.gov.uk/id/local-authority/32UF,Housing Landlord Manager,Electricity,16/10/2014,IJ00033565,69.53,Southern Electric,
South Holland District Council,http://statistics.data.gov.uk/id/local-authority/32UF,Asset and Property,Electricity,16/10/2014,IJ00033565,206.77,Southern Electric,
South Holland District Council,http://statistics.data.gov.uk/id/local-authority/32UF,Asset and Property,Electricity,16/10/2014,IJ00033565,168.62,Southern Electric,
South Holland District Council,http://statistics.data.gov.uk/id/local-authority/32UF,Environmental Services,Electricity,16/10/2014,IJ00033565,58.29,Southern Electric,
South Holland District Council,http://statistics.data.gov.uk/id/local-authority/32UF,Environmental Services,Electricity,16/10/2014,IJ00033565,2600.32,Southern Electric,
South Holland District Council,http://statistics.data.gov.uk/id/local-authority/32UF,Housing Landlord Manager,Electricity,16/10/2014,IJ00033565,138.61,Southern Electric,
South Holland District Council,http://statistics.data.gov.uk/id/local-authority/32UF,Housing Landlord Manager,Electricity,16/10/2014,IJ00033565,166.35,Southern Electric,
South Holland District Council,http://statistics.data.gov.uk/id/local-authority/32UF,Housing Landlord Manager,Electricity,16/10/2014,IJ00033565,95.63,Southern Electric,
South Holland District Council,http://statistics.data.gov.uk/id/local-authority/32UF,Housing Landlord Manager,Electricity,16/10/2014,IJ00033565,34.78,Southern Electric,
South Holland District Council,http://statistics.data.gov.uk/id/local-authority/32UF,Housing Landlord Manager,Electricity,16/10/2014,IJ00033565,56.74,Southern Electric,
South Holland District Council,http://statistics.data.gov.uk/id/local-authority/32UF,Housing Landlord Manager,Electricity,16/10/2014,IJ00033565,108.82,Southern Electric,
South Holland District Council,http://statistics.data.gov.uk/id/local-authority/32UF,Housing Landlord Manager,Electricity,16/10/2014,IJ00033565,70.15,Southern Electric,
South Holland District Council,http://statistics.data.gov.uk/id/local-authority/32UF,Environmental Services,Electricity,16/10/2014,IJ00033565,30.18,Southern Electric,
South Holland District Council,http://statistics.data.gov.uk/id/local-authority/32UF,Housing Landlord Manager,Electricity,16/10/2014,IJ00033601,529.92,Southern Electric,
South Holland District Council,http://statistics.data.gov.uk/id/local-authority/32UF,Community Development,Electricity,16/10/2014,IJ00033631,2025.93,Southern Electric,
South Holland District Council,http://statistics.data.gov.uk/id/local-authority/32UF,Housing Landlord Manager,Maintenance of Footpaths and Roadways,16/10/2014,IJ00033495,1730.00,South Holland Maintenance Ltd,
South Holland District Council,http://statistics.data.gov.uk/id/local-authority/32UF,Housing Landlord Manager,Maintenance of Footpaths and Roadways,16/10/2014,IJ00033496,995.00,South Holland Maintenance Ltd,
South Holland District Council,http://statistics.data.gov.uk/id/local-authority/32UF,Environmental Services,Professional & Contractors Fees,16/10/2014,IJ00033615,910.00,South Holland Maintenance Ltd,
South Holland District Council,http://statistics.data.gov.uk/id/local-authority/32UF,Housing Landlord Manager,Void Repairs,16/10/2014,IJ00033637,4300.00,South Holland Maintenance Ltd,
South Holland District Council,http://statistics.data.gov.uk/id/local-authority/32UF,Environmental Services,Agency Staff,16/10/2014,IJ00033522,359.64,The Best Connection Group Ltd,
South Holland District Council,http://statistics.data.gov.uk/id/local-authority/32UF,Environmental Services,Agency Staff,16/10/2014,IJ00033522,364.17,The Best Connection Group Ltd,
South Holland District Council,http://statistics.data.gov.uk/id/local-authority/32UF,Community Development,Other Miscellaneous Expenses,16/10/2014,IJ00033520,1000.00,Tulip Radio Ltd,
South Holland District Council,http://statistics.data.gov.uk/id/local-authority/32UF,Community Development,Other Miscellaneous Expenses,16/10/2014,IJ00033519,2049.00,Wells & Son Marquees Ltd,
South Holland District Council,http://statistics.data.gov.uk/id/local-authority/32UF,Housing Landlord Manager,Void Repairs,16/10/2014,IJ00033645,660.00,Spotless Cleaning,
South Holland District Council,http://statistics.data.gov.uk/id/local-authority/32UF,Building Control,Course Fees,16/10/2014,IJ00033602,2000.00,Peterborough Regional College,
South Holland District Council,http://statistics.data.gov.uk/id/local-authority/32UF,Housing Landlord Manager,Course Fees,16/10/2014,IJ00033556,1500.00,LAGAT TRAINING AND RECRUITMENT,
South Holland District Council,http://statistics.data.gov.uk/id/local-authority/32UF,Environmental Services,Commercial Vehicle Lease,16/10/2014,IJ00033672,710.65,NORTHRIDGE FINANCE LTD,
South Holland District Council,http://statistics.data.gov.uk/id/local-authority/32UF,Housing Landlord Manager,Furniture and Equipment,16/10/2014,IJ00033660,310.74,VEOLIA ES UK LTD,
South Holland District Council,http://statistics.data.gov.uk/id/local-authority/32UF,Housing Landlord Manager,Furniture and Equipment,16/10/2014,IJ00033660,310.74,VEOLIA ES UK LTD,
South Holland District Council,http://statistics.data.gov.uk/id/local-authority/32UF,Housing Landlord Manager,Furniture and Equipment,16/10/2014,IJ00033650,417.14,VEOLIA ES UK LTD,
South Holland District Council,http://statistics.data.gov.uk/id/local-authority/32UF,Housing Landlord Manager,Furniture and Equipment,16/10/2014,IJ00033650,417.14,VEOLIA ES UK LTD,
South Holland District Council,http://statistics.data.gov.uk/id/local-authority/32UF,Environmental Services,Professional & Contractors Fees,16/10/2014,IJ00033503,810.00,WORTH DRAINING LTD,
South Holland District Council,http://statistics.data.gov.uk/id/local-authority/32UF,ICT and Customer Services,Computer Hardware Maintenance,16/10/2014,IJ00033540,1283.00,IT Bus Ltd,
South Holland District Council,http://statistics.data.gov.uk/id/local-authority/32UF,Community Development,Payments to Bodies in Respect of Income Collected,16/10/2014,IJ00033667,679.50,RSPB South Lincs Local Group,
South Holland District Council,http://statistics.data.gov.uk/id/local-authority/32UF,Community Development,Commission,16/10/2014,IJ00033667,-56.62,RSPB South Lincs Local Group,
South Holland District Council,http://statistics.data.gov.uk/id/local-authority/32UF,Capital,Works to Buildings (main Contractor),16/10/2014,IJ00033554,3990.00,MCP Environmental,
South Holland District Council,http://statistics.data.gov.uk/id/local-authority/32UF,Capital,Works to Buildings (main Contractor),16/10/2014,IJ00033524,2170.00,MCP Environmental,
South Holland District Council,http://statistics.data.gov.uk/id/local-authority/32UF,Housing Landlord Manager,Void Repairs,16/10/2014,IJ00033649,5843.00,Elite Decor UK Limited,
South Holland District Council,http://statistics.data.gov.uk/id/local-authority/32UF,Housing Landlord Manager,Void Repairs,16/10/2014,IJ00033651,9754.00,Elite Decor UK Limited,
South Holland District Council,http://statistics.data.gov.uk/id/local-authority/32UF,Planning,Professional & Contractors Fees,16/10/2014,IJ00033612,1137.50,MatchTech Group Plc,
South Holland District Council,http://statistics.data.gov.uk/id/local-authority/32UF,Environmental Services,Maintenance,16/10/2014,IJ00033504,2560.00,Kier FPS Limited,
South Holland District Council,http://statistics.data.gov.uk/id/local-authority/32UF,Environmental Services,Maintenance,16/10/2014,IJ00033634,12648.80,Kier FPS Limited,
South Holland District Council,http://statistics.data.gov.uk/id/local-authority/32UF,Environmental Services,Maintenance,16/10/2014,IJ00033634,9486.60,Kier FPS Limited,
South Holland District Council,http://statistics.data.gov.uk/id/local-authority/32UF,Housing Landlord Manager,Electrical Upgrade,16/10/2014,IJ00033549,2500.00,BEA FIRE SAFETY LTD,
South Holland District Council,http://statistics.data.gov.uk/id/local-authority/32UF,Housing,Grants and Contributions to Outside Bodies- No Service Recei,16/10/2014,IJ00033570,4800.00,B W Cook Construction Ltd,
South Holland District Council,http://statistics.data.gov.uk/id/local-authority/32UF,Environmental Services,Agency Staff,23/10/2014,IJ00033914,324.00,247 Personnel Ltd,
South Holland District Council,http://statistics.data.gov.uk/id/local-authority/32UF,Environmental Services,Agency Staff,23/10/2014,IJ00033914,274.50,247 Personnel Ltd,
South Holland District Council,http://statistics.data.gov.uk/id/local-authority/32UF,Environmental Services,Agency Staff,23/10/2014,IJ00033914,67.50,247 Personnel Ltd,
South Holland District Council,http://statistics.data.gov.uk/id/local-authority/32UF,Environmental Services,Water and Sewerage Charges,23/10/2014,IJ00033799,1008.41,Anglian Water,
South Holland District Council,http://statistics.data.gov.uk/id/local-authority/32UF,Environmental Services,Water and Sewerage Charges,23/10/2014,IJ00033803,971.56,Anglian Water,
South Holland District Council,http://statistics.data.gov.uk/id/local-authority/32UF,Housing Landlord Manager,Materials and Consumables,23/10/2014,IJ00033869,545.55,B Ayres,
South Holland District Council,http://statistics.data.gov.uk/id/local-authority/32UF,Housing Landlord Manager,Materials and Consumables,23/10/2014,IJ00033869,1046.15,B Ayres,
South Holland District Council,http://statistics.data.gov.uk/id/local-authority/32UF,Environmental Services,Fuel & Oil,23/10/2014,IJ00033780,1260.00,Chandlers Oil And Gas,
South Holland District Council,http://statistics.data.gov.uk/id/local-authority/32UF,Housing Landlord Manager,Staff Training Expenses,23/10/2014,IJ00033899,843.76,Civica Limited,
South Holland District Council,http://statistics.data.gov.uk/id/local-authority/32UF,Collection Fund,Central Share of NDR Income - Government,23/10/2014,IJ00033781,1322851.00,Department For Communities & Local Government,
South Holland District Council,http://statistics.data.gov.uk/id/local-authority/32UF,Collection Fund,Transitional Protection Payments,23/10/2014,IJ00033781,-43762.00,Department For Communities & Local Government,
South Holland District Council,http://statistics.data.gov.uk/id/local-authority/32UF,Finance,Business Rates Tariff,23/10/2014,IJ00033781,689770.00,Department For Communities & Local Government,
South Holland District Council,http://statistics.data.gov.uk/id/local-authority/32UF,Collection Fund,Contribution to Deficit (NDR),23/10/2014,IJ00033781,-12505.00,Department For Communities & Local Government,
South Holland District Council,http://statistics.data.gov.uk/id/local-authority/32UF,Capital,Works to Buildings (main Contractor),23/10/2014,IJ00033777,1390.00,Dolphin Mobility East Mids Ltd,
South Holland District Council,http://statistics.data.gov.uk/id/local-authority/32UF,Community Development,Film and Entertainment Costs,23/10/2014,IJ00033829,809.98,Entertainment One Uk Ltd,
South Holland District Council,http://statistics.data.gov.uk/id/local-authority/32UF,HR,Other Employee Expenses,23/10/2014,IJ00033897,75.86,Fideliti Limited,
South Holland District Council,http://statistics.data.gov.uk/id/local-authority/32UF,Balance Sheet,Payroll SHDC Child Care,23/10/2014,IJ00033897,1896.50,Fideliti Limited,
South Holland District Council,http://statistics.data.gov.uk/id/local-authority/32UF,Asset and Property,Buildings Maintenance - Responsive,23/10/2014,IJ00033885,624.78,Glen Farrow UK Ltd,
South Holland District Council,http://statistics.data.gov.uk/id/local-authority/32UF,Community Development,Other Communication Costs,23/10/2014,IJ00033704,1881.00,G T S Security,
South Holland District Council,http://statistics.data.gov.uk/id/local-authority/32UF,Community Development,Other Communication Costs,23/10/2014,IJ00033705,700.14,G T S Security,
South Holland District Council,http://statistics.data.gov.uk/id/local-authority/32UF,Revs and Bens,VAT Customs and Excise,23/10/2014,IJ00033762,808.86,Jacobs Certificated Bailiffs,
South Holland District Council,http://statistics.data.gov.uk/id/local-authority/32UF,Housing Landlord Manager,Agency Staff,23/10/2014,IJ00033714,848.78,James Andrews Recruitment Solutions,
South Holland District Council,http://statistics.data.gov.uk/id/local-authority/32UF,Housing Landlord Manager,Agency Staff,23/10/2014,IJ00033723,848.78,James Andrews Recruitment Solutions,
South Holland District Council,http://statistics.data.gov.uk/id/local-authority/32UF,Housing Landlord Manager,Materials and Consumables,23/10/2014,IJ00033839,676.30,Kirby & Wells Ltd,
South Holland District Council,http://statistics.data.gov.uk/id/local-authority/32UF,Democratic Services,Lincolnshire Legal Services,23/10/2014,IJ00033761,7570.56,Lincolnshire County Council,
South Holland District Council,http://statistics.data.gov.uk/id/local-authority/32UF,Democratic Services,Course Fees,23/10/2014,IJ00033901,500.00,Lincolnshire County Council,
South Holland District Council,http://statistics.data.gov.uk/id/local-authority/32UF,Asset and Property,Professional & Contractors Fees,23/10/2014,IJ00033864,950.00,Longstaff & Co Client Account,
South Holland District Council,http://statistics.data.gov.uk/id/local-authority/32UF,Housing Landlord Manager,Professional & Contractors Fees,23/10/2014,IJ00033844,4050.00,Northgate Information Solutions Uk Ltd,
South Holland District Council,http://statistics.data.gov.uk/id/local-authority/32UF,Building Control,Professional & Contractors Fees,23/10/2014,IJ00033754,1000.00,Ocella Ltd,
South Holland District Council,http://statistics.data.gov.uk/id/local-authority/32UF,Building Control,License Fees,23/10/2014,IJ00033754,1000.00,Ocella Ltd,
South Holland District Council,http://statistics.data.gov.uk/id/local-authority/32UF,Environmental Services,Furniture and Equipment,23/10/2014,IJ00033817,501.39,Organic Recycling Ltd,
South Holland District Council,http://statistics.data.gov.uk/id/local-authority/32UF,Community Development,Performers and Entertainers Fees,23/10/2014,IJ00033841,991.85,Picturehouse Entertainment Limited,
South Holland District Council,http://statistics.data.gov.uk/id/local-authority/32UF,Housing Landlord Manager,Materials and Consumables,23/10/2014,IJ00033798,965.25,Rexel Uk Ltd,
South Holland District Council,http://statistics.data.gov.uk/id/local-authority/32UF,Community Development,Performers and Entertainers Fees,23/10/2014,IJ00033843,3210.04,Seabright Productions Ltd,
South Holland District Council,http://statistics.data.gov.uk/id/local-authority/32UF,Asset and Property,Electricity,23/10/2014,IJ00033910,2175.92,Southern Electric,
South Holland District Council,http://statistics.data.gov.uk/id/local-authority/32UF,Asset and Property,Electricity,23/10/2014,IJ00033868,3962.85,Southern Electric,
South Holland District Council,http://statistics.data.gov.uk/id/local-authority/32UF,Housing Landlord Manager,Void Repairs,23/10/2014,IJ00033809,3450.00,South Holland Maintenance Ltd,
South Holland District Council,http://statistics.data.gov.uk/id/local-authority/32UF,Housing Landlord Manager,Void Repairs,23/10/2014,IJ00033915,2850.00,South Holland Maintenance Ltd,
South Holland District Council,http://statistics.data.gov.uk/id/local-authority/32UF,Community Development,Other Miscellaneous Expenses,23/10/2014,IJ00033701,500.00,St John Ambulance,
South Holland District Council,http://statistics.data.gov.uk/id/local-authority/32UF,Environmental Services,Agency Staff,23/10/2014,IJ00033709,979.24,The Best Connection Group Ltd,
South Holland District Council,http://statistics.data.gov.uk/id/local-authority/32UF,Environmental Services,Agency Staff,23/10/2014,IJ00033709,281.88,The Best Connection Group Ltd,
South Holland District Council,http://statistics.data.gov.uk/id/local-authority/32UF,Balance Sheet,Payroll-Unison,23/10/2014,IJ00033881,1194.60,UNISON,
South Holland District Council,http://statistics.data.gov.uk/id/local-authority/32UF,Environmental Services,Tyres,23/10/2014,IJ00033697,1456.27,Vaculug Traction Tyres Ltd,
South Holland District Council,http://statistics.data.gov.uk/id/local-authority/32UF,Environmental Services,Tyres,23/10/2014,IJ00033697,1547.53,Vaculug Traction Tyres Ltd,
South Holland District Council,http://statistics.data.gov.uk/id/local-authority/32UF,Environmental Services,Tyres,23/10/2014,IJ00033697,20.00,Vaculug Traction Tyres Ltd,
South Holland District Council,http://statistics.data.gov.uk/id/local-authority/32UF,Environmental Services,Tyres,23/10/2014,IJ00033697,140.43,Vaculug Traction Tyres Ltd,
South Holland District Council,http://statistics.data.gov.uk/id/local-authority/32UF,Environmental Services,Tyres,23/10/2014,IJ00033697,158.42,Vaculug Traction Tyres Ltd,
South Holland District Council,http://statistics.data.gov.uk/id/local-authority/32UF,Housing Landlord Manager,Void Repairs,23/10/2014,IJ00033811,890.00,Spotless Cleaning,
South Holland District Council,http://statistics.data.gov.uk/id/local-authority/32UF,Finance,Government Housing Capital Receipt Pool,23/10/2014,IJ00033747,89534.10,Government Banking Services,
South Holland District Council,http://statistics.data.gov.uk/id/local-authority/32UF,Collection Fund,Precept- Lincolnshire County Council,23/10/2014,IJ00033788,2750115.00,Lincolnshire County Council,
South Holland District Council,http://statistics.data.gov.uk/id/local-authority/32UF,Collection Fund,Share of NDR Income - Lincolnshire,23/10/2014,IJ00033788,249590.00,Lincolnshire County Council,
South Holland District Council,http://statistics.data.gov.uk/id/local-authority/32UF,Collection Fund,Precept - Lincolnshire Police,23/10/2014,IJ00033786,500188.39,LOCAL POLICE AUTHORITY FUND ACCOUNT,
South Holland District Council,http://statistics.data.gov.uk/id/local-authority/32UF,Planning,Telephones,23/10/2014,IJ00033831,5.50,DAISY COMMUNICATIONS LTD,
South Holland District Council,http://statistics.data.gov.uk/id/local-authority/32UF,Housing Landlord Manager,Telephones,23/10/2014,IJ00033831,921.12,DAISY COMMUNICATIONS LTD,
South Holland District Council,http://statistics.data.gov.uk/id/local-authority/32UF,Finance,Telephones,23/10/2014,IJ00033831,882.34,DAISY COMMUNICATIONS LTD,
South Holland District Council,http://statistics.data.gov.uk/id/local-authority/32UF,Environmental Health,Telephones,23/10/2014,IJ00033831,10.99,DAISY COMMUNICATIONS LTD,
South Holland District Council,http://statistics.data.gov.uk/id/local-authority/32UF,Asset and Property,Telephones,23/10/2014,IJ00033831,21.98,DAISY COMMUNICATIONS LTD,
South Holland District Council,http://statistics.data.gov.uk/id/local-authority/32UF,Building Control,Telephones,23/10/2014,IJ00033831,5.49,DAISY COMMUNICATIONS LTD,
South Holland District Council,http://statistics.data.gov.uk/id/local-authority/32UF,Environmental Services,Telephones,23/10/2014,IJ00033831,10.99,DAISY COMMUNICATIONS LTD,
South Holland District Council,http://statistics.data.gov.uk/id/local-authority/32UF,Housing Landlord Manager,Telephones,23/10/2014,IJ00033831,11.05,DAISY COMMUNICATIONS LTD,
South Holland District Council,http://statistics.data.gov.uk/id/local-authority/32UF,Environmental Services,Telephones,23/10/2014,IJ00033831,11.26,DAISY COMMUNICATIONS LTD,
South Holland District Council,http://statistics.data.gov.uk/id/local-authority/32UF,Environmental Services,Telephones,23/10/2014,IJ00033831,11.26,DAISY COMMUNICATIONS LTD,
South Holland District Council,http://statistics.data.gov.uk/id/local-authority/32UF,Environmental Health,Telephones,23/10/2014,IJ00033831,10.99,DAISY COMMUNICATIONS LTD,
South Holland District Council,http://statistics.data.gov.uk/id/local-authority/32UF,Housing Landlord Manager,Telephones,23/10/2014,IJ00033831,11.00,DAISY COMMUNICATIONS LTD,
South Holland District Council,http://statistics.data.gov.uk/id/local-authority/32UF,Asset and Property,Telephones,23/10/2014,IJ00033831,10.99,DAISY COMMUNICATIONS LTD,
South Holland District Council,http://statistics.data.gov.uk/id/local-authority/32UF,Housing Landlord Manager,Telephones,23/10/2014,IJ00033831,15.88,DAISY COMMUNICATIONS LTD,
South Holland District Council,http://statistics.data.gov.uk/id/local-authority/32UF,Finance,Telephones,23/10/2014,IJ00033831,176.17,DAISY COMMUNICATIONS LTD,
South Holland District Council,http://statistics.data.gov.uk/id/local-authority/32UF,Finance,Telephones,23/10/2014,IJ00033831,10.99,DAISY COMMUNICATIONS LTD,
South Holland District Council,http://statistics.data.gov.uk/id/local-authority/32UF,Community Development,Telephones,23/10/2014,IJ00033831,11.20,DAISY COMMUNICATIONS LTD,
South Holland District Council,http://statistics.data.gov.uk/id/local-authority/32UF,Community Development,Telephones,23/10/2014,IJ00033831,44.13,DAISY COMMUNICATIONS LTD,
South Holland District Council,http://statistics.data.gov.uk/id/local-authority/32UF,Community Development,Telephones,23/10/2014,IJ00033831,122.49,DAISY COMMUNICATIONS LTD,
South Holland District Council,http://statistics.data.gov.uk/id/local-authority/32UF,Community Development,Telephones,23/10/2014,IJ00033831,21.98,DAISY COMMUNICATIONS LTD,
South Holland District Council,http://statistics.data.gov.uk/id/local-authority/32UF,Communications,Telephones,23/10/2014,IJ00033831,10.99,DAISY COMMUNICATIONS LTD,
South Holland District Council,http://statistics.data.gov.uk/id/local-authority/32UF,Democratic Services,Other Miscellaneous Expenses,23/10/2014,IJ00033752,1000.00,Cowbit Parish Council,
South Holland District Council,http://statistics.data.gov.uk/id/local-authority/32UF,Housing Landlord Manager,Void Repairs,23/10/2014,IJ00033793,700.00,Andrew Hicks t a Hicks Electrical,
South Holland District Council,http://statistics.data.gov.uk/id/local-authority/32UF,Housing Landlord Manager,Void Repairs,23/10/2014,IJ00033903,1023.00,Andrew Hicks t a Hicks Electrical,
South Holland District Council,http://statistics.data.gov.uk/id/local-authority/32UF,Housing Landlord Manager,External Painting Repairs,23/10/2014,IJ00033711,27455.00,Novus Property Solutions Ltd,
South Holland District Council,http://statistics.data.gov.uk/id/local-authority/32UF,Capital,Works to Buildings (main Contractor),23/10/2014,IJ00033712,3580.00,MCP Environmental,
South Holland District Council,http://statistics.data.gov.uk/id/local-authority/32UF,Capital,Works to Buildings (main Contractor),23/10/2014,IJ00033721,3580.00,MCP Environmental,
South Holland District Council,http://statistics.data.gov.uk/id/local-authority/32UF,Planning,Professional & Contractors Fees,23/10/2014,IJ00033911,1121.25,MatchTech Group Plc,
South Holland District Council,http://statistics.data.gov.uk/id/local-authority/32UF,Building Control,License Fees,23/10/2014,IJ00033710,2163.15,Phoenix Software Ltd,
South Holland District Council,http://statistics.data.gov.uk/id/local-authority/32UF,Planning,License Fees,23/10/2014,IJ00033710,961.40,Phoenix Software Ltd,
South Holland District Council,http://statistics.data.gov.uk/id/local-authority/32UF,Planning,License Fees,23/10/2014,IJ00033710,961.40,Phoenix Software Ltd,
South Holland District Council,http://statistics.data.gov.uk/id/local-authority/32UF,Planning,License Fees,23/10/2014,IJ00033710,961.40,Phoenix Software Ltd,
South Holland District Council,http://statistics.data.gov.uk/id/local-authority/32UF,Planning,License Fees,23/10/2014,IJ00033710,961.40,Phoenix Software Ltd,
South Holland District Council,http://statistics.data.gov.uk/id/local-authority/32UF,Building Control,License Fees,23/10/2014,IJ00033755,599.00,DesignBuilder Software Ltd,
South Holland District Council,http://statistics.data.gov.uk/id/local-authority/32UF,Capital,Works to Buildings (main Contractor),23/10/2014,IJ00033889,1599.00,MORGAN TUCKER LTD,
South Holland District Council,http://statistics.data.gov.uk/id/local-authority/32UF,Finance,Banking Charges,27/10/2014,IJ00033783,821.75,Lloyds TSB,
South Holland District Council,http://statistics.data.gov.uk/id/local-authority/32UF,Environmental Services,Agency Staff,30/10/2014,IJ00034064,207.00,247 Personnel Ltd,
South Holland District Council,http://statistics.data.gov.uk/id/local-authority/32UF,Environmental Services,Agency Staff,30/10/2014,IJ00034064,459.00,247 Personnel Ltd,
South Holland District Council,http://statistics.data.gov.uk/id/local-authority/32UF,Environmental Services,Professional & Contractors Fees,30/10/2014,IJ00034050,2700.00,A Riddel Skip Hire & Scrap Metal Merchants,
South Holland District Council,http://statistics.data.gov.uk/id/local-authority/32UF,Environmental Services,Agency Staff,30/10/2014,IJ00034069,142.10,Blue Arrow Ltd,
South Holland District Council,http://statistics.data.gov.uk/id/local-authority/32UF,Environmental Services,Agency Staff,30/10/2014,IJ00034069,1207.44,Blue Arrow Ltd,
South Holland District Council,http://statistics.data.gov.uk/id/local-authority/32UF,Environmental Services,Agency Staff,30/10/2014,IJ00034069,1895.44,Blue Arrow Ltd,
South Holland District Council,http://statistics.data.gov.uk/id/local-authority/32UF,Environmental Services,Agency Staff,30/10/2014,IJ00034069,324.38,Blue Arrow Ltd,
South Holland District Council,http://statistics.data.gov.uk/id/local-authority/32UF,Environmental Services,Agency Staff,30/10/2014,IJ00034065,599.06,Blue Arrow Ltd,
South Holland District Council,http://statistics.data.gov.uk/id/local-authority/32UF,Environmental Services,Agency Staff,30/10/2014,IJ00034065,1126.65,Blue Arrow Ltd,
South Holland District Council,http://statistics.data.gov.uk/id/local-authority/32UF,Environmental Services,Agency Staff,30/10/2014,IJ00034065,1815.59,Blue Arrow Ltd,
South Holland District Council,http://statistics.data.gov.uk/id/local-authority/32UF,Environmental Services,Agency Staff,30/10/2014,IJ00034065,81.20,Blue Arrow Ltd,
South Holland District Council,http://statistics.data.gov.uk/id/local-authority/32UF,Environmental Services,Agency Staff,30/10/2014,IJ00034065,96.74,Blue Arrow Ltd,
South Holland District Council,http://statistics.data.gov.uk/id/local-authority/32UF,Environmental Services,Materials and Consumables,30/10/2014,IJ00034073,11585.58,Bpi Recycled Products,
South Holland District Council,http://statistics.data.gov.uk/id/local-authority/32UF,Environmental Services,Materials and Consumables,30/10/2014,IJ00034073,5054.05,Bpi Recycled Products,
South Holland District Council,http://statistics.data.gov.uk/id/local-authority/32UF,HR,Staff Training Expenses,30/10/2014,IJ00033959,1399.40,Breckland Council,
South Holland District Council,http://statistics.data.gov.uk/id/local-authority/32UF,Housing Landlord Manager,Course Fees,30/10/2014,IJ00033959,334.00,Breckland Council,
South Holland District Council,http://statistics.data.gov.uk/id/local-authority/32UF,Housing Landlord Manager,Damp Proofing,30/10/2014,IJ00034049,2470.00,British Waterproofing,
South Holland District Council,http://statistics.data.gov.uk/id/local-authority/32UF,Housing Landlord Manager,Void Repairs,30/10/2014,IJ00034009,580.00,Castlebuild Scaffolding Ltd,
South Holland District Council,http://statistics.data.gov.uk/id/local-authority/32UF,Asset and Property,Professional & Contractors Fees,30/10/2014,IJ00033968,1230.00,Gadarch Design Services Ltd,
South Holland District Council,http://statistics.data.gov.uk/id/local-authority/32UF,Capital,Works to Buildings (main Contractor),30/10/2014,IJ00033981,29226.00,Gaswise Services Limited,
South Holland District Council,http://statistics.data.gov.uk/id/local-authority/32UF,Environmental Health,Furniture and Equipment,30/10/2014,IJ00033951,645.00,Harrisons Packaging,
South Holland District Council,http://statistics.data.gov.uk/id/local-authority/32UF,Housing Landlord Manager,Void Decoration,30/10/2014,IJ00033948,666.66,Homebase Limited,
South Holland District Council,http://statistics.data.gov.uk/id/local-authority/32UF,Capital,Works to Buildings (main Contractor),30/10/2014,IJ00033948,50.00,Homebase Limited,
South Holland District Council,http://statistics.data.gov.uk/id/local-authority/32UF,Housing Landlord Manager,Void Decoration,30/10/2014,IJ00033949,425.00,Homebase Limited,
South Holland District Council,http://statistics.data.gov.uk/id/local-authority/32UF,Capital,Works to Buildings (main Contractor),30/10/2014,IJ00033949,133.32,Homebase Limited,
South Holland District Council,http://statistics.data.gov.uk/id/local-authority/32UF,Environmental Services,Agency Staff,30/10/2014,IJ00034059,230.77,Integrity Plus Ltd,
South Holland District Council,http://statistics.data.gov.uk/id/local-authority/32UF,Environmental Services,Agency Staff,30/10/2014,IJ00034059,90.77,Integrity Plus Ltd,
South Holland District Council,http://statistics.data.gov.uk/id/local-authority/32UF,Environmental Services,Agency Staff,30/10/2014,IJ00034059,363.34,Integrity Plus Ltd,
South Holland District Council,http://statistics.data.gov.uk/id/local-authority/32UF,Environmental Services,Agency Staff,30/10/2014,IJ00034060,363.34,Integrity Plus Ltd,
South Holland District Council,http://statistics.data.gov.uk/id/local-authority/32UF,Environmental Services,Agency Staff,30/10/2014,IJ00034060,363.34,Integrity Plus Ltd,
South Holland District Council,http://statistics.data.gov.uk/id/local-authority/32UF,Environmental Services,Agency Staff,30/10/2014,IJ00034063,363.34,Integrity Plus Ltd,
South Holland District Council,http://statistics.data.gov.uk/id/local-authority/32UF,Environmental Services,Agency Staff,30/10/2014,IJ00034063,225.86,Integrity Plus Ltd,
South Holland District Council,http://statistics.data.gov.uk/id/local-authority/32UF,Housing Landlord Manager,Buildings Maintenance - Responsive,30/10/2014,IJ00034015,758.00,K L Morbey Fencing,
South Holland District Council,http://statistics.data.gov.uk/id/local-authority/32UF,Environmental Services,Buildings Maintenance - Responsive,30/10/2014,IJ00034061,1275.00,K L Morbey Fencing,
South Holland District Council,http://statistics.data.gov.uk/id/local-authority/32UF,Planning,Professional & Contractors Fees,30/10/2014,IJ00033955,3210.00,Lincolnshire County Council,
South Holland District Council,http://statistics.data.gov.uk/id/local-authority/32UF,Housing Landlord Manager,Other Communication Costs,30/10/2014,IJ00033978,6131.86,Northern Housing Consortium Ltd,
South Holland District Council,http://statistics.data.gov.uk/id/local-authority/32UF,Community Development,Payments to Bodies in Respect of Income Collected,30/10/2014,IJ00033973,780.00,Spalding Water Taxi Co. Ltd,
South Holland District Council,http://statistics.data.gov.uk/id/local-authority/32UF,Community Development,Buildings Maintenance - Responsive,30/10/2014,IJ00033967,2929.00,Stanair Industrial Door Services Ltd,
South Holland District Council,http://statistics.data.gov.uk/id/local-authority/32UF,Housing,Grants and Contributions to Outside Bodies- No Service Recei,30/10/2014,IJ00033962,3575.00,Stuart Taplin,
South Holland District Council,http://statistics.data.gov.uk/id/local-authority/32UF,Housing Landlord Manager,Course Fees,30/10/2014,IJ00034016,1760.00,Sure Fire Technical Services Ltd,
South Holland District Council,http://statistics.data.gov.uk/id/local-authority/32UF,Democratic Services,Course Fees,30/10/2014,IJ00033966,1000.00,The Institute Of Licensing (Events) Ltd,
South Holland District Council,http://statistics.data.gov.uk/id/local-authority/32UF,Housing Landlord Manager,Materials and Consumables,30/10/2014,IJ00034019,630.00,Trent Fireplaces,
South Holland District Council,http://statistics.data.gov.uk/id/local-authority/32UF,Housing Landlord Manager,Materials and Consumables,30/10/2014,IJ00034019,630.00,Trent Fireplaces,
South Holland District Council,http://statistics.data.gov.uk/id/local-authority/32UF,Community Development,Film and Entertainment Costs,30/10/2014,IJ00034020,587.49,Twentieth Century Fox Film Co Ltd,
South Holland District Council,http://statistics.data.gov.uk/id/local-authority/32UF,Community Development,Performers and Entertainers Fees,30/10/2014,IJ00033969,1694.38,Universal Pictures International Uk,
South Holland District Council,http://statistics.data.gov.uk/id/local-authority/32UF,Capital,Works to Buildings (main Contractor),30/10/2014,IJ00033980,30973.00,Warkton Roofing Co. Ltd,
South Holland District Council,http://statistics.data.gov.uk/id/local-authority/32UF,Finance,Internal Drainage Board Levies,30/10/2014,IJ00033924,394752.00,Welland & Deepings Int Drain Brd,
South Holland District Council,http://statistics.data.gov.uk/id/local-authority/32UF,Housing Landlord Manager,Void Repairs,30/10/2014,IJ00034013,600.00,Spotless Cleaning,
South Holland District Council,http://statistics.data.gov.uk/id/local-authority/32UF,Community Development,Premises and Room Hire,30/10/2014,IJ00033986,-1165.00,St Nicolas Players,
South Holland District Council,http://statistics.data.gov.uk/id/local-authority/32UF,Community Development,Other Hire Fees,30/10/2014,IJ00033986,-235.00,St Nicolas Players,
South Holland District Council,http://statistics.data.gov.uk/id/local-authority/32UF,Community Development,Payments to Bodies in Respect of Income Collected,30/10/2014,IJ00033986,7785.50,St Nicolas Players,
South Holland District Council,http://statistics.data.gov.uk/id/local-authority/32UF,Community Development,Commission,30/10/2014,IJ00033986,-648.79,St Nicolas Players,
South Holland District Council,http://statistics.data.gov.uk/id/local-authority/32UF,Finance,Internal Drainage Board Levies,30/10/2014,IJ00033961,65315.00,NORTH LEVEL DRAINAGE BOARD,
South Holland District Council,http://statistics.data.gov.uk/id/local-authority/32UF,Democratic Services,Other Miscellaneous Expenses,30/10/2014,IJ00034025,1000.00,ALL SAINTS CHURCH,
South Holland District Council,http://statistics.data.gov.uk/id/local-authority/32UF,Community Development,License Fees,30/10/2014,IJ00033974,880.82,PRS for Music,
South Holland District Council,http://statistics.data.gov.uk/id/local-authority/32UF,Community Development,License Fees,30/10/2014,IJ00033975,1185.56,PRS for Music,
South Holland District Council,http://statistics.data.gov.uk/id/local-authority/32UF,Capital,Works to Buildings (main Contractor),30/10/2014,IJ00033935,2865.00,MPL HOME IMPROVEMENTS SERVICES LINCS LTD,
South Holland District Council,http://statistics.data.gov.uk/id/local-authority/32UF,Democratic Services,Professional & Contractors Fees,30/10/2014,IJ00033964,1051.92,ELECTORAL REFORM SERVICES,
South Holland District Council,http://statistics.data.gov.uk/id/local-authority/32UF,Democratic Services,Professional & Contractors Fees,30/10/2014,IJ00033965,1508.23,ELECTORAL REFORM SERVICES,
South Holland District Council,http://statistics.data.gov.uk/id/local-authority/32UF,Building Control,Furniture and Equipment,30/10/2014,IJ00033957,1342.00,BSRIA Limited,
South Holland District Council,http://statistics.data.gov.uk/id/local-authority/32UF,Housing Landlord Manager,Gas Repairs,30/10/2014,IJ00033982,8571.30,Aaron Services Ltd,
South Holland District Council,http://statistics.data.gov.uk/id/local-authority/32UF,Housing Landlord Manager,Gas Renewals,30/10/2014,IJ00033983,4674.59,Aaron Services Ltd,
South Holland District Council,http://statistics.data.gov.uk/id/local-authority/32UF,Housing Landlord Manager,Gas Servicing,30/10/2014,IJ00033984,16039.17,Aaron Services Ltd,
South Holland District Council,http://statistics.data.gov.uk/id/local-authority/32UF,Economic Development,Grants and Contributions to Outside Bodies- No Service Recei,30/10/2014,IJ00034023,1465.00,RAB Precision Engineering Ltd,
South Holland District Council,http://statistics.data.gov.uk/id/local-authority/32UF,Planning,Professional & Contractors Fees,30/10/2014,IJ00034034,1091.35,MatchTech Group Plc,
South Holland District Council,http://statistics.data.gov.uk/id/local-authority/32UF,Economic Development,Professional & Contractors Fees,30/10/2014,IJ00033932,612.50,Oakwell Management Services Limited,
South Holland District Council,http://statistics.data.gov.uk/id/local-authority/32UF,Environmental Services,Maintenance,30/10/2014,IJ00034053,2560.00,Kier FPS Limited,
South Holland District Council,http://statistics.data.gov.uk/id/local-authority/32UF,Community Development,Buildings Maintenance - Responsive,30/10/2014,IJ00034018,1393.00,Dcinex UK Limited,
South Holland District Council,http://statistics.data.gov.uk/id/local-authority/32UF,Environmental Health,Other Miscellaneous Expenses,30/10/2014,IJ00033947,1000.00,Morriss and Haynes Funeral Service,
South Holland District Council,http://statistics.data.gov.uk/id/local-authority/32UF,Finance,Other Income,30/10/2014,IJ00032905,739.20,Waterstones,
South Holland District Council,http://statistics.data.gov.uk/id/local-authority/32UF,Economic Development,Grants and Contributions to Outside Bodies- No Service Recei,30/10/2014,IJ00034024,2265.00,RAXEL STORAGE SYSTEMS LTD,
South Holland District Council,http://statistics.data.gov.uk/id/local-authority/32UF,Democratic Services,Other Miscellaneous Expenses,30/10/2014,IJ00034072,1000.00,HOLBEACH YOUTH CLUB,
